fUST/lending_fUST_20251006
["ID","MTS","AMOUNT","RATE_DAILY","PERIOD"]
[389562507,1759715439001,-413.24868068,0.00016438,2]
[389562508,1759715439011,-205.76842101,0.00016438,2]
[389562509,1759715439020,-300.99485293,0.00016438,2]
[389562510,1759715439031,-500.0,0.00016438,2]
[389562511,1759715439040,-500.0,0.00016438,2]
[389562512,1759715439049,-500.0,0.00016438,2]
[389562513,1759715439057,-234.93894011,0.00016438,2]
[389562514,1759715439066,-500.0,0.00016438,2]
[389562515,1759715439075,-505.23705447,0.00016438,2]
[389562516,1759715439087,-500.0,0.00016438,2]
[389562517,1759715439096,-500.0,0.00016438,2]
[389562518,1759715439105,-1004.87750348,0.00016438,2]
[389562519,1759715439114,-502.5853396,0.00016438,2]
[389562520,1759715439123,-506.27,0.00016438,2]
[389562521,1759715439134,-500.0,0.00016438,2]
[389562522,1759715439143,-504.2033985,0.00016438,2]
[389562523,1759715439152,-500.0,0.00016438,2]
[389562524,1759715439161,-500.0,0.00016438,2]
[389562525,1759715439173,-500.0,0.00016438,2]
[389562526,1759715439183,-500.0,0.00016438,2]
[389562527,1759715439193,-500.0,0.00016438,2]
[389562528,1759715439202,-500.0,0.00016438,2]
[389562529,1759715439212,-500.0,0.00016438,2]
[389562530,1759715439221,-500.0,0.00016438,2]
[389562531,1759715439230,-500.0,0.00016438,2]
[389562532,1759715439240,-500.0,0.00016438,2]
[389562533,1759715439424,-500.0,0.00016438,2]
[389562534,1759715439434,-502.03627385,0.00016438,2]
[389562535,1759715439444,-500.0,0.00016438,2]
[389562536,1759715439453,-500.0,0.00016438,2]
[389562537,1759715439463,-546.5,0.00016438,2]
[389562538,1759715439472,-500.0,0.00016438,2]
[389562539,1759715439481,-503.57702355,0.00016438,2]
[389562540,1759715439490,-500.0,0.00016438,2]
[389562541,1759715439499,-503.93477449,0.00016438,2]
[389562542,1759715439508,-500.0,0.00016438,2]
[389562543,1759715439518,-502.60277643,0.00016438,2]
[389562544,1759715439528,-500.0,0.00016438,2]
[389562545,1759715439538,-500.0,0.00016438,2]
[389562546,1759715439547,-500.0,0.00016438,2]
[389562547,1759715439557,-503.72138962,0.00016438,2]
[389562548,1759715439567,-503.50090093,0.00016438,2]
[389562549,1759715439576,-500.0,0.00016438,2]
[389562550,1759715439591,-500.0,0.00016438,2]
[389562551,1759715439601,-500.0,0.00016438,2]
[389562552,1759715439611,-511.58,0.00016438,2]
[389562553,1759715439622,-500.0,0.00016438,2]
[389562554,1759715439634,-502.96377271,0.00016438,2]
[389562556,1759715439643,-192.18543827,0.00016438,2]
[389562557,1759715439655,-501.31560316,0.00016438,2]
[389562559,1759715439665,-501.71434595,0.00016438,2]
[389562560,1759715439674,-500.0,0.00016438,2]
[389562561,1759715439684,-500.0,0.00016438,2]
[389562562,1759715439694,-500.0,0.00016438,2]
[389562563,1759715439703,-502.6199171,0.00016438,2]
[389562564,1759715439712,-486.31452965,0.00016438,2]
[389562565,1759715439721,-502.17990551,0.00016438,2]
[389562566,1759715439730,-500.0,0.00016438,2]
[389562567,1759715439739,-500.0,0.00016438,2]
[389562568,1759715439749,-210.89650781,0.00016438,2]
[389562570,1759715439767,-484.95081972,0.00016438,2]
[389562572,1759715439777,-500.0,0.00016438,2]
[389562573,1759715439786,-500.0,0.00016438,2]
[389562574,1759715439795,-482.70137275,0.00016438,2]
[389562575,1759715439806,-500.0,0.00016438,2]
[389562576,1759715439815,-500.0,0.00016438,2]
[389562577,1759715439825,-500.0,0.00016438,2]
[389562578,1759715439834,-501.83729131,0.00016438,2]
[389562579,1759715439844,-503.8229281,0.00016438,2]
[389562580,1759715439854,-500.0,0.00016438,2]
[389562581,1759715439863,-501.91074625,0.00016438,2]
[389562582,1759715439872,-500.0,0.00016438,2]
[389562583,1759715439882,-512.3603766,0.00016438,2]
[389562584,1759715439891,-500.0,0.00016438,2]
[389562585,1759715439900,-500.0,0.00016438,2]
[389562587,1759715439910,-500.0,0.00016438,2]
[389562589,1759715439919,-500.0,0.00016438,2]
[389562590,1759715439928,-502.79852547,0.00016438,2]
[389562591,1759715439937,-500.0,0.00016438,2]
[389562592,1759715439946,-500.0,0.00016438,2]
[389562593,1759715439956,-500.0,0.00016438,2]
[389562595,1759715439965,-504.31784967,0.00016438,2]
[389562596,1759715439975,-501.54509253,0.00016438,2]
[389562597,1759715439986,-500.0,0.00016438,2]
[389562598,1759715439996,-500.0,0.00016438,2]
[389562599,1759715440005,-500.0,0.00016438,2]
[389562600,1759715440015,-500.0,0.00016438,2]
[389562602,1759715440024,-503.1152053,0.00016438,2]
[389562604,1759715440035,-500.0,0.00016438,2]
[389562605,1759715440044,-500.0,0.00016438,2]
[389562606,1759715440053,-502.81941047,0.00016438,2]
[389562607,1759715440062,-879.16,0.00016438,2]
[389562608,1759715440071,-500.0,0.00016438,2]
[389562609,1759715440081,-502.85845302,0.00016438,2]
[389562610,1759715440094,-502.97340256,0.00016438,2]
[389562611,1759715440103,-500.0,0.00016438,2]
[389562612,1759715440112,-399.11642506,0.00016438,2]
[389562613,1759715440122,-500.0,0.00016438,2]
[389562614,1759715440132,-500.0,0.00016438,2]
[389562615,1759715440143,-785.99,0.00016438,2]
[389562616,1759715440153,-500.0,0.00016438,2]
[389562617,1759715440163,-366.66368063,0.00016438,2]
[389562618,1759715440173,-500.0,0.00016438,2]
[389562619,1759715440183,-500.0,0.00016438,2]
[389562620,1759715440192,-500.0,0.00016438,2]
[389562621,1759715440201,-328.21724102,0.00016438,2]
[389562622,1759715440210,-502.46208934,0.00016438,2]
[389562623,1759715440220,-884.68,0.00016438,2]
[389562624,1759715440229,-884.68,0.00016438,2]
[389562625,1759715440238,-884.68,0.00016438,2]
[389562626,1759715440247,-884.68,0.00016438,2]
[389562627,1759715440256,-884.68,0.00016438,2]
[389562628,1759715440266,-884.68,0.00016438,2]
[389562629,1759715440275,-884.68,0.00016438,2]
[389562630,1759715440288,-500.0,0.00016438,2]
[389562631,1759715440297,-884.68,0.00016438,2]
[389562632,1759715440306,-884.68,0.00016438,2]
[389562633,1759715440315,-884.68,0.00016438,2]
[389562634,1759715440324,-884.68,0.00016438,2]
[389562635,1759715440333,-884.68,0.00016438,2]
[389562636,1759715440343,-884.68,0.00016438,2]
[389562637,1759715440353,-884.68,0.00016438,2]
[389562638,1759715440362,-884.68,0.00016438,2]
[389562639,1759715440371,-884.68,0.00016438,2]
[389562640,1759715440380,-884.68,0.00016438,2]
[389562641,1759715440389,-884.68,0.00016438,2]
[389562642,1759715440399,-884.68,0.00016438,2]
[389562643,1759715440408,-884.68,0.00016438,2]
[389562644,1759715440417,-884.68,0.00016438,2]
[389562645,1759715440426,-884.68,0.00016438,2]
[389562646,1759715440435,-884.68,0.00016438,2]
[389562647,1759715440444,-884.82915105,0.00016438,2]
[389562648,1759715440453,-500.0,0.00016438,2]
[389562649,1759715440462,-642.35181052,0.00016438,2]
[389562650,1759715440471,-500.0,0.00016438,2]
[389562651,1759715440480,-500.0,0.00016438,2]
[389562652,1759715440490,-500.0,0.00016438,2]
[389562653,1759715440499,-500.0,0.00016438,2]
[389562654,1759715440509,-510.47460441,0.00016438,2]
[389562655,1759715440519,-505.13724472,0.00016438,2]
[389562656,1759715440529,-500.0,0.00016438,2]
[389562657,1759715440538,-504.15614209,0.00016438,2]
[389562658,1759715440546,-500.0,0.00016438,2]
[389562659,1759715440555,-545.98,0.00016438,2]
[389562660,1759715440564,-500.0,0.00016438,2]
[389562661,1759715440573,-501.9168385,0.00016438,2]
[389562662,1759715440581,-500.0,0.00016438,2]
[389562663,1759715440590,-500.0,0.00016438,2]
[389562664,1759715440599,-500.0,0.00016438,2]
[389562665,1759715440608,-500.0,0.00016438,2]
[389562666,1759715440617,-506.81977277,0.00016438,2]
[389562667,1759715440626,-500.0,0.00016438,2]
[389562668,1759715440637,-500.0,0.00016438,2]
[389562669,1759715440645,-658.92,0.00016438,2]
[389562670,1759715440655,-500.0,0.00016438,2]
[389562671,1759715440664,-503.28813987,0.00016438,2]
[389562672,1759715440674,-503.30856506,0.00016438,2]
[389562673,1759715440684,-500.0,0.00016438,2]
[389562674,1759715440694,-500.0,0.00016438,2]
[389562675,1759715440703,-502.11037321,0.00016438,2]
[389562676,1759715440712,-500.0,0.00016438,2]
[389562677,1759715440721,-500.0,0.00016438,2]
[389562678,1759715440730,-464.81055431,0.00016438,2]
[389562679,1759715440739,-500.0,0.00016438,2]
[389562680,1759715440749,-502.43806338,0.00016438,2]
[389562681,1759715440758,-500.0,0.00016438,2]
[389562682,1759715440767,-500.0,0.00016438,2]
[389562683,1759715440777,-500.0,0.00016438,2]
[389562684,1759715440786,-503.32764113,0.00016438,2]
[389562685,1759715440795,-500.0,0.00016438,2]
[389562686,1759715440804,-500.0,0.00016438,2]
[389562687,1759715440813,-500.0,0.00016438,2]
[389562688,1759715440821,-500.0,0.00016438,2]
[389562689,1759715440832,-500.0,0.00016438,2]
[389562690,1759715440842,-500.0,0.00016438,2]
[389562691,1759715440853,-502.85789205,0.00016438,2]
[389562692,1759715440861,-500.0,0.00016438,2]
[389562693,1759715440870,-500.0,0.00016438,2]
[389562694,1759715440880,-501.92359993,0.00016438,2]
[389562695,1759715440888,-817.56,0.00016438,2]
[389562696,1759715440897,-500.0,0.00016438,2]
[389562697,1759715440907,-501.2832815,0.00016438,2]
[389562698,1759715440916,-671.59,0.00016438,2]
[389562699,1759715440925,-577.02,0.00016438,2]
[389562700,1759715440934,-500.0,0.00016438,2]
[389562701,1759715440943,-500.0,0.00016438,2]
[389562702,1759715440952,-503.52593013,0.00016438,2]
[389562703,1759715440961,-500.0,0.00016438,2]
[389562704,1759715440970,-500.0,0.00016438,2]
[389562705,1759715440979,-500.0,0.00016438,2]
[389562706,1759715440987,-500.0,0.00016438,2]
[389562707,1759715440996,-1020.88,0.00016438,2]
[389562708,1759715441006,-420.69521551,0.00016438,2]
[389562709,1759715441014,-503.27364536,0.00016438,2]
[389562710,1759715441023,-502.17276466,0.00016438,2]
[389562711,1759715441033,-503.78596373,0.00016438,2]
[389562712,1759715441041,-500.0,0.00016438,2]
[389562713,1759715441050,-500.60230904,0.00016438,2]
[389562714,1759715441059,-514.73,0.00016438,2]
[389562715,1759715441068,-500.0,0.00016438,2]
[389562716,1759715441077,-500.0,0.00016438,2]
[389562717,1759715441087,-500.71615396,0.00016438,2]
[389562718,1759715441099,-604.2,0.00016438,2]
[389562719,1759715441108,-1275.84,0.00016438,2]
[389562720,1759715441118,-500.0,0.00016438,2]
[389562721,1759715441128,-500.0,0.00016438,2]
[389562722,1759715441139,-500.0,0.00016438,2]
[389562723,1759715441149,-500.0,0.00016438,2]
[389562724,1759715441158,-275.45191766,0.00016438,2]
[389562725,1759715441170,-500.0,0.00016438,2]
[389562726,1759715441178,-503.25634901,0.00016438,2]
[389562727,1759715441188,-500.0,0.00016438,2]
[389562728,1759715441197,-500.0,0.00016438,2]
[389562729,1759715441207,-500.0,0.00016438,2]
[389562730,1759715441216,-500.0,0.00016438,2]
[389562731,1759715441225,-505.68986963,0.00016438,2]
[389562732,1759715441233,-500.0,0.00016438,2]
[389562733,1759715441242,-500.0,0.00016438,2]
[389562734,1759715441251,-501.77528084,0.00016438,2]
[389562735,1759715441260,-504.29957849,0.00016438,2]
[389562736,1759715441271,-500.0,0.00016438,2]
[389562737,1759715441281,-500.0,0.00016438,2]
[389562738,1759715441291,-502.50879138,0.00016438,2]
[389562739,1759715441300,-470.60037289,0.00016438,2]
[389562740,1759715441309,-501.49118073,0.00016438,2]
[389562741,1759715441318,-500.0,0.00016438,2]
[389562742,1759715441327,-504.02364657,0.00016438,2]
[389562743,1759715441338,-500.0,0.00016438,2]
[389562744,1759715441358,-500.0,0.00016438,2]
[389562745,1759715441368,-509.49032801,0.00016438,2]
[389562746,1759715441378,-507.79277498,0.00016438,2]
[389562747,1759715441387,-500.0,0.00016438,2]
[389562748,1759715441397,-335.68253303,0.00016438,2]
[389562749,1759715441407,-500.0,0.00016438,2]
[389562750,1759715441418,-500.0,0.00016438,2]
[389562751,1759715441429,-505.20319085,0.00016438,2]
[389562752,1759715441438,-500.0,0.00016438,2]
[389562753,1759715441447,-500.0,0.00016438,2]
[389562754,1759715441457,-500.0,0.00016438,2]
[389562755,1759715441466,-514.36699849,0.00016438,2]
[389562756,1759715441476,-1920.65,0.00016438,2]
[389562757,1759715441485,-500.0,0.00016438,2]
[389562758,1759715441494,-500.0,0.00016438,2]
[389562759,1759715441504,-500.0,0.00016438,2]
[389562760,1759715441513,-500.0,0.00016438,2]
[389562761,1759715441522,-503.86169246,0.00016438,2]
[389562762,1759715441532,-500.0,0.00016438,2]
[389562763,1759715441542,-374.06215871,0.00016438,2]
[389562764,1759715441552,-500.0,0.00016438,2]
[389562765,1759715441562,-500.0,0.00016438,2]
[389562766,1759715441572,-500.0,0.00016438,2]
[389562767,1759715441581,-3573.19,0.00016438,2]
[389562768,1759715441590,-889.79,0.00016438,2]
[389562769,1759715441601,-1396.06,0.00016438,2]
[389562770,1759715441610,-500.0,0.00016438,2]
[389562771,1759715441620,-491.09925396,0.00016438,2]
[389562772,1759715441629,-151.4671297,0.00016438,2]
[389562773,1759715441639,-483.05075343,0.00016438,2]
[389562774,1759715441650,-500.0,0.00016438,2]
[389562775,1759715441661,-957.98,0.00016438,2]
[389562776,1759715441670,-504.18441899,0.00016438,2]
[389562777,1759715441680,-324.59844069,0.00016438,2]
[389562778,1759715441689,-1464.12,0.00016438,2]
[389562779,1759715441698,-874.55,0.00016438,2]
[389562780,1759715441707,-501.80848379,0.00016438,2]
[389562781,1759715441717,-3536.29,0.00016438,2]
[389562782,1759715441726,-809.03,0.00016438,2]
[389562783,1759715441735,-500.0,0.00016438,2]
[389562784,1759715441745,-500.0,0.00016438,2]
[389562785,1759715441754,-3235.76,0.00016438,2]
[389562786,1759715441762,-1449.19,0.00016438,2]
[389562787,1759715441772,-503.57778222,0.00016438,2]
[389562788,1759715441782,-506.93724351,0.00016438,2]
[389562789,1759715441792,-10631.46,0.00016438,2]
[389562790,1759715441802,-500.0,0.00016438,2]
[389562791,1759715441811,-500.0,0.00016438,2]
[389562792,1759715441820,-263.92416815,0.00016438,2]
[389562793,1759715441830,-500.0,0.00016438,2]
[389562794,1759715441841,-501.41993873,0.00016438,2]
[389562795,1759715441850,-670.88,0.00016438,2]
[389562796,1759715441859,-500.0,0.00016438,2]
[389562797,1759715441869,-482.57422583,0.00016438,2]
[389562798,1759715441878,-1691.2,0.00016438,2]
[389562799,1759715441888,-501.0623093,0.00016438,2]
[389562800,1759715441898,-500.0,0.00016438,2]
[389562801,1759715441907,-500.0,0.00016438,2]
[389562802,1759715441917,-502.320223,0.00016438,2]
[389562803,1759715441927,-500.0,0.00016438,2]
[389562804,1759715441937,-504.90961587,0.00016438,2]
[389562805,1759715441948,-500.90183838,0.00016438,2]
[389562806,1759715441958,-500.92490295,0.00016438,2]
[389562807,1759715441968,-860.73,0.00016438,2]
[389562808,1759715441977,-500.0,0.00016438,2]
[389562809,1759715441986,-2417.43,0.00016438,2]
[389562810,1759715441995,-1986.17,0.00016438,2]
[389562811,1759715442004,-303.99973546,0.00016438,2]
[389562812,1759715442013,-500.0,0.00016438,2]
[389562813,1759715442022,-1039.62,0.00016438,2]
[389562814,1759715442032,-500.0,0.00016438,2]
[389562815,1759715442042,-1353.68,0.00016438,2]
[389562816,1759715442051,-449.13632152,0.00016438,2]
[389562817,1759715442060,-500.0,0.00016438,2]
[389562818,1759715442070,-500.0,0.00016438,2]
[389562819,1759715442079,-500.0,0.00016438,2]
[389562820,1759715442094,-500.0,0.00016438,2]
[389562821,1759715442105,-502.3515719,0.00016438,2]
[389562822,1759715442114,-623.13,0.00016438,2]
[389562823,1759715442124,-500.0,0.00016438,2]
[389562824,1759715442135,-500.0,0.00016438,2]
[389562825,1759715442146,-662.18,0.00016438,2]
[389562826,1759715442155,-500.0,0.00016438,2]
[389562827,1759715442165,-500.0,0.00016438,2]
[389562828,1759715442175,-500.0,0.00016438,2]
[389562829,1759715442186,-501.36691712,0.00016438,2]
[389562830,1759715442195,-500.0,0.00016438,2]
[389562831,1759715442204,-500.0,0.00016438,2]
[389562832,1759715442214,-504.17159112,0.00016438,2]
[389562833,1759715442224,-4111.78,0.00016438,2]
[389562834,1759715442233,-504.75002722,0.00016438,2]
[389562835,1759715442243,-500.0,0.00016438,2]
[389562836,1759715442252,-3202.89,0.00016438,2]
[389562837,1759715442261,-500.0,0.00016438,2]
[389562838,1759715442270,-500.0,0.00016438,2]
[389562839,1759715442280,-500.0,0.00016438,2]
[389562840,1759715442289,-500.0,0.00016438,2]
[389562841,1759715442299,-500.0,0.00016438,2]
[389562842,1759715442308,-500.0,0.00016438,2]
[389562843,1759715442318,-500.0,0.00016438,2]
[389562844,1759715442328,-500.0,0.00016438,2]
[389562845,1759715442337,-392.36450792,0.00016438,2]
[389562846,1759715442346,-500.0,0.00016438,2]
[389562847,1759715442355,-500.0,0.00016438,2]
[389562848,1759715442365,-500.0,0.00016438,2]
[389562849,1759715442374,-500.0,0.00016438,2]
[389562850,1759715442383,-500.0,0.00016438,2]
[389562851,1759715442392,-613.08,0.00016438,2]
[389562852,1759715442402,-500.0,0.00016438,2]
[389562853,1759715442412,-170.40455905,0.00016438,2]
[389562854,1759715442421,-500.0,0.00016438,2]
[389562855,1759715442430,-967.23,0.00016438,2]
[389562856,1759715442439,-502.3000387,0.00016438,2]
[389562857,1759715442449,-504.25703031,0.00016438,2]
[389562858,1759715442458,-666.66,0.00016438,2]
[389562859,1759715442467,-500.0,0.00016438,2]
[389562860,1759715442478,-502.47514187,0.00016438,2]
[389562861,1759715442488,-500.0,0.00016438,2]
[389562862,1759715442499,-502.63937543,0.00016438,2]
[389562863,1759715442510,-1463.9,0.00016438,2]
[389562864,1759715442520,-500.0,0.00016438,2]
[389562865,1759715442529,-884.41,0.00016438,2]
[389562866,1759715442539,-501.48220018,0.00016438,2]
[389562867,1759715442550,-501.57202748,0.00016438,2]
[389562868,1759715442559,-765.37,0.00016438,2]
[389562869,1759715442570,-500.0,0.00016438,2]
[389562870,1759715442580,-3847.6,0.00016438,2]
[389562871,1759715442595,-500.0,0.00016438,2]
[389562872,1759715442606,-500.0,0.00016438,2]
[389562873,1759715442615,-502.96288782,0.00016438,2]
[389562874,1759715442624,-500.0,0.00016438,2]
[389562875,1759715442633,-550.85,0.00016438,2]
[389562876,1759715442642,-500.0,0.00016438,2]
[389562877,1759715442652,-500.0,0.00016438,2]
[389562878,1759715442661,-1664.05,0.00016438,2]
[389562880,1759715442669,-502.55040513,0.00016438,2]
[389562882,1759715442679,-500.0,0.00016438,2]
[389562884,1759715442688,-500.0,0.00016438,2]
[389562886,1759715442697,-500.0,0.00016438,2]
[389562887,1759715442706,-360.78221347,0.00016438,2]
[389562889,1759715442715,-500.0,0.00016438,2]
[389562891,1759715442724,-500.0,0.00016438,2]
[389562893,1759715442733,-500.0,0.00016438,2]
[389562895,1759715442742,-500.0,0.00016438,2]
[389562896,1759715442751,-500.0,0.00016438,2]
[389562898,1759715442760,-500.0,0.00016438,2]
[389562900,1759715442770,-503.11372501,0.00016438,2]
[389562902,1759715442779,-500.0,0.00016438,2]
[389562904,1759715442788,-7170.8,0.00016438,2]
[389562906,1759715442798,-500.0,0.00016438,2]
[389562908,1759715442807,-8229.24,0.00016438,2]
[389562910,1759715442817,-500.0,0.00016438,2]
[389562912,1759715442826,-502.3315616,0.00016438,2]
[389562913,1759715442835,-500.0,0.00016438,2]
[389562914,1759715442845,-500.0,0.00016438,2]
[389562915,1759715442854,-500.0,0.00016438,2]
[389562916,1759715442863,-503.37483554,0.00016438,2]
[389562917,1759715442873,-500.83741796,0.00016438,2]
[389562919,1759715442883,-2481.5,0.00016438,2]
[389562920,1759715442892,-502.25811125,0.00016438,2]
[389562921,1759715442901,-500.0,0.00016438,2]
[389562923,1759715442912,-500.0,0.00016438,2]
[389562924,1759715442922,-1464.6,0.00016438,2]
[389562925,1759715442932,-501.38257947,0.00016438,2]
[389562926,1759715442941,-571.19,0.00016438,2]
[389562927,1759715442950,-500.0,0.00016438,2]
[389562928,1759715442960,-888.23,0.00016438,2]
[389562929,1759715442969,-500.0,0.00016438,2]
[389562930,1759715442978,-6781.6,0.00016438,2]
[389562932,1759715442987,-502.5846476,0.00016438,2]
[389562934,1759715442995,-503.24566826,0.00016438,2]
[389562936,1759715443005,-500.0,0.00016438,2]
[389562938,1759715443014,-500.0,0.00016438,2]
[389562940,1759715443023,-500.0,0.00016438,2]
[389562941,1759715443033,-500.0,0.00016438,2]
[389562942,1759715443042,-1160.44,0.00016438,2]
[389562943,1759715443051,-505.8610576,0.00016438,2]
[389562944,1759715443062,-502.42453481,0.00016438,2]
[389562945,1759715443071,-500.0,0.00016438,2]
[389562946,1759715443081,-500.0,0.00016438,2]
[389562947,1759715443094,-500.0,0.00016438,2]
[389562949,1759715443105,-500.0,0.00016438,2]
[389562950,1759715443114,-4247.21,0.00016438,2]
[389562951,1759715443123,-500.0,0.00016438,2]
[389562952,1759715443135,-500.0,0.00016438,2]
[389562953,1759715443145,-902.6,0.00016438,2]
[389562954,1759715443155,-500.0,0.00016438,2]
[389562955,1759715443166,-500.0,0.00016438,2]
[389562956,1759715443175,-500.0,0.00016438,2]
[389562957,1759715443185,-579.79,0.00016438,2]
[389562958,1759715443194,-500.0,0.00016438,2]
[389562959,1759715443203,-1558.85,0.00016438,2]
[389562960,1759715443213,-295.1422884,0.00016438,2]
[389562961,1759715443221,-500.0,0.00016438,2]
[389562962,1759715443231,-500.0,0.00016438,2]
[389562963,1759715443240,-500.0,0.00016438,2]
[389562965,1759715443250,-500.0,0.00016438,2]
[389562966,1759715443260,-506.41984534,0.00016438,2]
[389562967,1759715443268,-500.0,0.00016438,2]
[389562968,1759715443278,-500.0,0.00016438,2]
[389562969,1759715443287,-500.0,0.00016438,2]
[389562970,1759715443296,-500.0,0.00016438,2]
[389562972,1759715443306,-684.8,0.00016438,2]
[389562974,1759715443314,-500.0,0.00016438,2]
[389562975,1759715443324,-500.0,0.00016438,2]
[389562977,1759715443333,-500.0,0.00016438,2]
[389562978,1759715443343,-1114.5,0.00016438,2]
[389562979,1759715443354,-500.0,0.00016438,2]
[389562980,1759715443363,-1243.95,0.00016438,2]
[389562981,1759715443373,-500.0,0.00016438,2]
[389562982,1759715443381,-500.0,0.00016438,2]
[389562983,1759715443390,-582.22,0.00016438,2]
[389562984,1759715443400,-500.0,0.00016438,2]
[389562985,1759715443410,-500.0,0.00016438,2]
[389562986,1759715443422,-500.0,0.00016438,2]
[389562987,1759715443432,-1500.0,0.00016438,2]
[389562988,1759715443441,-500.50022108,0.00016473,2]
[389562990,1759715443625,-501.331365,0.00016473,2]
[389562991,1759715443635,-500.0,0.00016473,2]
[389562992,1759715443646,-500.0,0.00016473,2]
[389562993,1759715443658,-500.19994402,0.00016473,2]
[389562994,1759715443667,-500.0,0.00016473,2]
[389562995,1759715443678,-300.0,0.00016655,2]
[389562996,1759715443687,-300.0,0.00016655,2]
[389562997,1759715443696,-300.0,0.00016655,2]
[389562998,1759715443705,-300.0,0.00016655,2]
[389562999,1759715443714,-300.0,0.00016655,2]
[389563000,1759715443724,-300.0,0.00016655,2]
[389563001,1759715443734,-300.0,0.00016655,2]
[389563002,1759715443745,-300.0,0.00016655,2]
[389563003,1759715443754,-300.0,0.00016655,2]
[389563004,1759715443763,-300.0,0.00016655,2]
[389563005,1759715443774,-300.0,0.00016655,2]
[389563006,1759715443784,-300.0,0.00016655,2]
[389563007,1759715443794,-300.0,0.00016655,2]
[389563008,1759715443804,-300.0,0.00016655,2]
[389563009,1759715443813,-300.0,0.00016655,2]
[389563010,1759715443823,-600.0,0.00016655,2]
[389563011,1759715443832,-12032.50657224,0.00016665,2]
[389563012,1759715443841,-189.5432724,0.000167,2]
[389563013,1759715443851,-500.0,0.00016712,2]
[389563014,1759715443861,-500.0,0.00016712,2]
[389563015,1759715443871,-318.80970978,0.00016712,2]
[389563016,1759715443882,-525.26009351,0.00016712,2]
[389563017,1759715443891,-208.8323348,0.00016712,2]
[389563018,1759715443901,-505.9791416,0.00016712,2]
[389563019,1759715443911,-500.0,0.00016712,2]
[389563020,1759715443922,-500.0,0.00016712,2]
[389563021,1759715443933,-483.46928967,0.00016712,2]
[389563022,1759715443943,-500.0,0.00016712,2]
[389563023,1759715443953,-829.44,0.00016712,2]
[389563024,1759715443962,-483.56843995,0.00016712,2]
[389563025,1759715443971,-500.0,0.00016712,2]
[389563026,1759715443980,-500.0,0.00016712,2]
[389563027,1759715443990,-500.0,0.00016712,2]
[389563028,1759715443999,-500.0,0.00016712,2]
[389563029,1759715444009,-500.0,0.00016712,2]
[389563030,1759715444023,-202.64058197,0.00016712,2]
[389563031,1759715444032,-483.7712909,0.00016712,2]
[389563032,1759715444041,-481.70961216,0.00016712,2]
[389563033,1759715444050,-500.0,0.00016712,2]
[389563034,1759715444060,-504.07219891,0.00016712,2]
[389563035,1759715444069,-376.80882805,0.00016712,2]
[389563036,1759715444079,-500.0,0.00016712,2]
[389563037,1759715444091,-500.0,0.00016712,2]
[389563038,1759715444102,-501.94373991,0.00016712,2]
[389563039,1759715444111,-504.32544214,0.00016712,2]
[389563040,1759715444122,-500.0,0.00016712,2]
[389563041,1759715444134,-506.49778294,0.00016712,2]
[389563042,1759715444144,-500.0,0.00016712,2]
[389563043,1759715444154,-504.044913,0.00016712,2]
[389563044,1759715444168,-503.69383834,0.00016712,2]